Workbook

Sheet data
C1: التاريخ
C2: 2016-04-01
A5: رقم الشيت | B5: رقم الخلية | C5: رقم العميل | D5: التاريخ | E5: البيان | F5: المبلغ عليه | G5: المبلغ له | H5: ملاحظة1 | I5: ملاحظة2 | J5: ملاحظة3 | K5: ملاحظة4 | L5: ملاحظة5
A6: 3 | B6: $C$8 | C6: 3 | D6: 2016-04-01 | E6: k | F6: 1000 | G6: 20000 | H6: 1 | I6: 2 | J6: 3 | K6: 4 | L6: 5
A7: 6 | B7: $C$8 | C7: 5 | D7: 2016-04-01 | E7: ahmed | F7: 350 | G7: 40
A8: 11 | B8: $C$7 | C8: 5 | D8: 2016-04-01 | E8: jmnnh | F8: 4500 | G8: 3000

Sheet Main
A1: اسم الصفحة
A2: data
A3: 3
A4: 4
A5: 5
A6: 6
A7: 7
A8: 9
A9: 10
A10: 11
A11: 12
A12: 13
A13: 14
A14: 15
A15: 16
A16: 17
A17: 18
A18: 19
A19: 20
A20: 21
A21: 22
A22: 23
A23: 24
A24: 25
A25: 26
A26: 27
A27: 28
A28: 29
A29: 30
A30: 31
A31: 32
A32: 33
A33: 34
A34: 35
A35: 36
A36: 37
A37: 38
A38: 39
A39: 40
A40: 41
A41: 42
A42: 43
A43: 44
A44: 45
A45: 46
A46: 47
A47: 48
A48: 49
A49: 50
A50: 51
A51: 52
A52: 53
A53: 54
A54: 55
A55: 56
A56: 57
A57: 58
A58: 59
A59: 60
A60: 61
A61: 62
A62: 63
A63: 64
A64: 65
A65: 66
A66: 67
A67: 68
A68: 69
A69: 70
A70: 71
A71: 72
A72: 73
A73: 74
A74: 75
A75: 76
A76: 77
A77: 78
A78: 79
A79: 80
A80: 81
A81: 82
A82: 83
A83: 84
A84: 85
A85: 86
A86: 87
A87: 88
A88: 89
A89: 90
A90: 91
A91: 92
A92: 93
A93: 94
A94: 95
A95: 96
A96: 97
A97: 98
A98: 99
A99: 100
A100: 101
A101: 102
A102: 103
A103: 104
A104: 105
A105: 106
A106: 107
A107: 108
A108: 109
A109: 110
A110: 111
A111: 112
A112: 113
A113: 114
A114: 115
A115: 116
A116: 117
A117: 118
A118: 119
A119: 120
A120: 121
A121: 122
A122: 123
A123: 124
A124: 125
A125: 126
A126: 127
A127: 128
A128: 129
A129: 130
A130: 131
A131: 132
A132: 133
A133: 134

Sheet Form (hidden)
L1: الاجمالي عليه | N1: =SUM(D7:D24) -> 0
L2: المتبقي | N2: =N1-N3 -> 0
L3: الاجمالي له | N3: =SUM(E7:E24) -> 0
B6: التاريخ | C6: البيان | D6: المبلغ عليه | E6: المبلغ له | F6: ملاحظة1 | G6: ملاحظة2 | H6: ملاحظة3 | I6: ملاحظة4 | J6: ملاحظة5
C24: الاجمالي

Sheet 3
L1: الاجمالي عليه | N1: =SUM(D7:D24) -> 1200
L2: المتبقي | N2: =N1-N3 -> -19200
L3: الاجمالي له | N3: =SUM(E7:E24) -> 20400
B6: التاريخ | C6: البيان | D6: المبلغ عليه | E6: المبلغ له | F6: ملاحظة1 | G6: ملاحظة2 | H6: ملاحظة3 | I6: ملاحظة4 | J6: ملاحظة5
A7: 4 | B7: 2015-01-01 | C7: ج | D7: 200 | E7: 400
A8: 3 | B8: 2016-04-01 | C8: k | D8: 1000 | E8: 20000 | F8: 1 | G8: 2 | H8: 3 | I8: 4 | J8: 5
C24: الاجمالي

Sheet 4
L1: الاجمالي عليه | N1: =SUM(D7:D24) -> 200
L2: المتبقي | N2: =N1-N3 -> -200
L3: الاجمالي له | N3: =SUM(E7:E24) -> 400
B6: التاريخ | C6: البيان | D6: المبلغ عليه | E6: المبلغ له | F6: ملاحظة1 | G6: ملاحظة2 | H6: ملاحظة3 | I6: ملاحظة4 | J6: ملاحظة5
A7: 4 | B7: 2015-01-01 | C7: ج | D7: 200 | E7: 400
C24: الاجمالي

Sheet 5
L1: الاجمالي عليه | N1: =SUM(D7:D24) -> 200
L2: المتبقي | N2: =N1-N3 -> -200
L3: الاجمالي له | N3: =SUM(E7:E24) -> 400
B6: التاريخ | C6: البيان | D6: المبلغ عليه | E6: المبلغ له | F6: ملاحظة1 | G6: ملاحظة2 | H6: ملاحظة3 | I6: ملاحظة4 | J6: ملاحظة5
A7: 4 | B7: 2015-01-01 | C7: ج | D7: 200 | E7: 400
C24: الاجمالي

Sheet 6
L1: الاجمالي عليه | N1: =SUM(D7:D24) -> 550
L2: المتبقي | N2: =N1-N3 -> 110
L3: الاجمالي له | N3: =SUM(E7:E24) -> 440
B6: التاريخ | C6: البيان | D6: المبلغ عليه | E6: المبلغ له | F6: ملاحظة1 | G6: ملاحظة2 | H6: ملاحظة3 | I6: ملاحظة4 | J6: ملاحظة5
A7: 4 | B7: 2015-01-01 | C7: ج | D7: 200 | E7: 400
A8: 5 | B8: 2016-04-01 | C8: ahmed | D8: 350 | E8: 40
C24: الاجمالي

Sheet 7
L1: الاجمالي عليه | N1: =SUM(D7:D24) -> 0
L2: المتبقي | N2: =N1-N3 -> 0
L3: الاجمالي له | N3: =SUM(E7:E24) -> 0
B6: التاريخ | C6: البيان | D6: المبلغ عليه | E6: المبلغ له | F6: ملاحظة1 | G6: ملاحظة2 | H6: ملاحظة3 | I6: ملاحظة4 | J6: ملاحظة5
C24: الاجمالي

Sheet 9
L1: الاجمالي عليه | N1: =SUM(D7:D24) -> 0
L2: المتبقي | N2: =N1-N3 -> 0
L3: الاجمالي له | N3: =SUM(E7:E24) -> 0
B6: التاريخ | C6: البيان | D6: المبلغ عليه | E6: المبلغ له | F6: ملاحظة1 | G6: ملاحظة2 | H6: ملاحظة3 | I6: ملاحظة4 | J6: ملاحظة5
C24: الاجمالي

Sheet 10
L1: الاجمالي عليه | N1: =SUM(D7:D24) -> 0
L2: المتبقي | N2: =N1-N3 -> 0
L3: الاجمالي له | N3: =SUM(E7:E24) -> 0
B6: التاريخ | C6: البيان | D6: المبلغ عليه | E6: المبلغ له | F6: ملاحظة1 | G6: ملاحظة2 | H6: ملاحظة3 | I6: ملاحظة4 | J6: ملاحظة5
C24: الاجمالي

Sheet 11
L1: الاجمالي عليه | N1: =SUM(D7:D24) -> 4500
L2: المتبقي | N2: =N1-N3 -> 1500
L3: الاجمالي له | N3: =SUM(E7:E24) -> 3000
B6: التاريخ | C6: البيان | D6: المبلغ عليه | E6: المبلغ له | F6: ملاحظة1 | G6: ملاحظة2 | H6: ملاحظة3 | I6: ملاحظة4 | J6: ملاحظة5
A7: 5 | B7: 2016-04-01 | C7: jmnnh | D7: 4500 | E7: 3000
C24: الاجمالي

Sheet 12
L1: الاجمالي عليه | N1: =SUM(D7:D24) -> 0
L2: المتبقي | N2: =N1-N3 -> 0
L3: الاجمالي له | N3: =SUM(E7:E24) -> 0
B6: التاريخ | C6: البيان | D6: المبلغ عليه | E6: المبلغ له | F6: ملاحظة1 | G6: ملاحظة2 | H6: ملاحظة3 | I6: ملاحظة4 | J6: ملاحظة5
C24: الاجمالي

Sheet 13
L1: الاجمالي عليه | N1: =SUM(D7:D24) -> 0
L2: المتبقي | N2: =N1-N3 -> 0
L3: الاجمالي له | N3: =SUM(E7:E24) -> 0
B6: التاريخ | C6: البيان | D6: المبلغ عليه | E6: المبلغ له | F6: ملاحظة1 | G6: ملاحظة2 | H6: ملاحظة3 | I6: ملاحظة4 | J6: ملاحظة5
C24: الاجمالي

Sheet 14
L1: الاجمالي عليه | N1: =SUM(D7:D24) -> 0
L2: المتبقي | N2: =N1-N3 -> 0
L3: الاجمالي له | N3: =SUM(E7:E24) -> 0
B6: التاريخ | C6: البيان | D6: المبلغ عليه | E6: المبلغ له | F6: ملاحظة1 | G6: ملاحظة2 | H6: ملاحظة3 | I6: ملاحظة4 | J6: ملاحظة5
C24: الاجمالي

Sheet 15
L1: الاجمالي عليه | N1: =SUM(D7:D24) -> 0
L2: المتبقي | N2: =N1-N3 -> 0
L3: الاجمالي له | N3: =SUM(E7:E24) -> 0
B6: التاريخ | C6: البيان | D6: المبلغ عليه | E6: المبلغ له | F6: ملاحظة1 | G6: ملاحظة2 | H6: ملاحظة3 | I6: ملاحظة4 | J6: ملاحظة5
C24: الاجمالي

Sheet 16
L1: الاجمالي عليه | N1: =SUM(D7:D24) -> 0
L2: المتبقي | N2: =N1-N3 -> 0
L3: الاجمالي له | N3: =SUM(E7:E24) -> 0
B6: التاريخ | C6: البيان | D6: المبلغ عليه | E6: المبلغ له | F6: ملاحظة1 | G6: ملاحظة2 | H6: ملاحظة3 | I6: ملاحظة4 | J6: ملاحظة5
C24: الاجمالي

Sheet 17
L1: الاجمالي عليه | N1: =SUM(D7:D24) -> 0
L2: المتبقي | N2: =N1-N3 -> 0
L3: الاجمالي له | N3: =SUM(E7:E24) -> 0
B6: التاريخ | C6: البيان | D6: المبلغ عليه | E6: المبلغ له | F6: ملاحظة1 | G6: ملاحظة2 | H6: ملاحظة3 | I6: ملاحظة4 | J6: ملاحظة5
C24: الاجمالي

Sheet 18
L1: الاجمالي عليه | N1: =SUM(D7:D24) -> 0
L2: المتبقي | N2: =N1-N3 -> 0
L3: الاجمالي له | N3: =SUM(E7:E24) -> 0
B6: التاريخ | C6: البيان | D6: المبلغ عليه | E6: المبلغ له | F6: ملاحظة1 | G6: ملاحظة2 | H6: ملاحظة3 | I6: ملاحظة4 | J6: ملاحظة5
C24: الاجمالي

Sheet 19
L1: الاجمالي عليه | N1: =SUM(D7:D24) -> 0
L2: المتبقي | N2: =N1-N3 -> 0
L3: الاجمالي له | N3: =SUM(E7:E24) -> 0
B6: التاريخ | C6: البيان | D6: المبلغ عليه | E6: المبلغ له | F6: ملاحظة1 | G6: ملاحظة2 | H6: ملاحظة3 | I6: ملاحظة4 | J6: ملاحظة5
C24: الاجمالي

Sheet 20
L1: الاجمالي عليه | N1: =SUM(D7:D24) -> 0
L2: المتبقي | N2: =N1-N3 -> 0
L3: الاجمالي له | N3: =SUM(E7:E24) -> 0
B6: التاريخ | C6: البيان | D6: المبلغ عليه | E6: المبلغ له | F6: ملاحظة1 | G6: ملاحظة2 | H6: ملاحظة3 | I6: ملاحظة4 | J6: ملاحظة5
C24: الاجمالي

Sheet 21
L1: الاجمالي عليه | N1: =SUM(D7:D24) -> 0
L2: المتبقي | N2: =N1-N3 -> 0
L3: الاجمالي له | N3: =SUM(E7:E24) -> 0
B6: التاريخ | C6: البيان | D6: المبلغ عليه | E6: المبلغ له | F6: ملاحظة1 | G6: ملاحظة2 | H6: ملاحظة3 | I6: ملاحظة4 | J6: ملاحظة5
C24: الاجمالي

Sheet 22
L1: الاجمالي عليه | N1: =SUM(D7:D24) -> 0
L2: المتبقي | N2: =N1-N3 -> 0
L3: الاجمالي له | N3: =SUM(E7:E24) -> 0
B6: التاريخ | C6: البيان | D6: المبلغ عليه | E6: المبلغ له | F6: ملاحظة1 | G6: ملاحظة2 | H6: ملاحظة3 | I6: ملاحظة4 | J6: ملاحظة5
C24: الاجمالي

Sheet 23
L1: الاجمالي عليه | N1: =SUM(D7:D24) -> 0
L2: المتبقي | N2: =N1-N3 -> 0
L3: الاجمالي له | N3: =SUM(E7:E24) -> 0
B6: التاريخ | C6: البيان | D6: المبلغ عليه | E6: المبلغ له | F6: ملاحظة1 | G6: ملاحظة2 | H6: ملاحظة3 | I6: ملاحظة4 | J6: ملاحظة5
C24: الاجمالي

Sheet 24
L1: الاجمالي عليه | N1: =SUM(D7:D24) -> 0
L2: المتبقي | N2: =N1-N3 -> 0
L3: الاجمالي له | N3: =SUM(E7:E24) -> 0
B6: التاريخ | C6: البيان | D6: المبلغ عليه | E6: المبلغ له | F6: ملاحظة1 | G6: ملاحظة2 | H6: ملاحظة3 | I6: ملاحظة4 | J6: ملاحظة5
C24: الاجمالي

Sheet 25
L1: الاجمالي عليه | N1: =SUM(D7:D24) -> 0
L2: المتبقي | N2: =N1-N3 -> 0
L3: الاجمالي له | N3: =SUM(E7:E24) -> 0
B6: التاريخ | C6: البيان | D6: المبلغ عليه | E6: المبلغ له | F6: ملاحظة1 | G6: ملاحظة2 | H6: ملاحظة3 | I6: ملاحظة4 | J6: ملاحظة5
C24: الاجمالي

Sheet 26
L1: الاجمالي عليه | N1: =SUM(D7:D24) -> 0
L2: المتبقي | N2: =N1-N3 -> 0
L3: الاجمالي له | N3: =SUM(E7:E24) -> 0
B6: التاريخ | C6: البيان | D6: المبلغ عليه | E6: المبلغ له | F6: ملاحظة1 | G6: ملاحظة2 | H6: ملاحظة3 | I6: ملاحظة4 | J6: ملاحظة5
C24: الاجمالي

Sheet 27
L1: الاجمالي عليه | N1: =SUM(D7:D24) -> 0
L2: المتبقي | N2: =N1-N3 -> 0
L3: الاجمالي له | N3: =SUM(E7:E24) -> 0
B6: التاريخ | C6: البيان | D6: المبلغ عليه | E6: المبلغ له | F6: ملاحظة1 | G6: ملاحظة2 | H6: ملاحظة3 | I6: ملاحظة4 | J6: ملاحظة5
C24: الاجمالي

Sheet 28
L1: الاجمالي عليه | N1: =SUM(D7:D24) -> 0
L2: المتبقي | N2: =N1-N3 -> 0
L3: الاجمالي له | N3: =SUM(E7:E24) -> 0
B6: التاريخ | C6: البيان | D6: المبلغ عليه | E6: المبلغ له | F6: ملاحظة1 | G6: ملاحظة2 | H6: ملاحظة3 | I6: ملاحظة4 | J6: ملاحظة5
C24: الاجمالي

Sheet 29
L1: الاجمالي عليه | N1: =SUM(D7:D24) -> 0
L2: المتبقي | N2: =N1-N3 -> 0
L3: الاجمالي له | N3: =SUM(E7:E24) -> 0
B6: التاريخ | C6: البيان | D6: المبلغ عليه | E6: المبلغ له | F6: ملاحظة1 | G6: ملاحظة2 | H6: ملاحظة3 | I6: ملاحظة4 | J6: ملاحظة5
C24: الاجمالي

Sheet 30
L1: الاجمالي عليه | N1: =SUM(D7:D24) -> 0
L2: المتبقي | N2: =N1-N3 -> 0
L3: الاجمالي له | N3: =SUM(E7:E24) -> 0
B6: التاريخ | C6: البيان | D6: المبلغ عليه | E6: المبلغ له | F6: ملاحظة1 | G6: ملاحظة2 | H6: ملاحظة3 | I6: ملاحظة4 | J6: ملاحظة5
C24: الاجمالي

Sheet 31
L1: الاجمالي عليه | N1: =SUM(D7:D24) -> 0
L2: المتبقي | N2: =N1-N3 -> 0
L3: الاجمالي له | N3: =SUM(E7:E24) -> 0
B6: التاريخ | C6: البيان | D6: المبلغ عليه | E6: المبلغ له | F6: ملاحظة1 | G6: ملاحظة2 | H6: ملاحظة3 | I6: ملاحظة4 | J6: ملاحظة5
C24: الاجمالي

Sheet 32
L1: الاجمالي عليه | N1: =SUM(D7:D24) -> 0
L2: المتبقي | N2: =N1-N3 -> 0
L3: الاجمالي له | N3: =SUM(E7:E24) -> 0
B6: التاريخ | C6: البيان | D6: المبلغ عليه | E6: المبلغ له | F6: ملاحظة1 | G6: ملاحظة2 | H6: ملاحظة3 | I6: ملاحظة4 | J6: ملاحظة5
C24: الاجمالي

Sheet 33
L1: الاجمالي عليه | N1: =SUM(D7:D24) -> 0
L2: المتبقي | N2: =N1-N3 -> 0
L3: الاجمالي له | N3: =SUM(E7:E24) -> 0
B6: التاريخ | C6: البيان | D6: المبلغ عليه | E6: المبلغ له | F6: ملاحظة1 | G6: ملاحظة2 | H6: ملاحظة3 | I6: ملاحظة4 | J6: ملاحظة5
C24: الاجمالي

Sheet 34
L1: الاجمالي عليه | N1: =SUM(D7:D24) -> 0
L2: المتبقي | N2: =N1-N3 -> 0
L3: الاجمالي له | N3: =SUM(E7:E24) -> 0
B6: التاريخ | C6: البيان | D6: المبلغ عليه | E6: المبلغ له | F6: ملاحظة1 | G6: ملاحظة2 | H6: ملاحظة3 | I6: ملاحظة4 | J6: ملاحظة5
C24: الاجمالي

Sheet 35
L1: الاجمالي عليه | N1: =SUM(D7:D24) -> 0
L2: المتبقي | N2: =N1-N3 -> 0
L3: الاجمالي له | N3: =SUM(E7:E24) -> 0
B6: التاريخ | C6: البيان | D6: المبلغ عليه | E6: المبلغ له | F6: ملاحظة1 | G6: ملاحظة2 | H6: ملاحظة3 | I6: ملاحظة4 | J6: ملاحظة5
C24: الاجمالي

Sheet 36
L1: الاجمالي عليه | N1: =SUM(D7:D24) -> 0
L2: المتبقي | N2: =N1-N3 -> 0
L3: الاجمالي له | N3: =SUM(E7:E24) -> 0
B6: التاريخ | C6: البيان | D6: المبلغ عليه | E6: المبلغ له | F6: ملاحظة1 | G6: ملاحظة2 | H6: ملاحظة3 | I6: ملاحظة4 | J6: ملاحظة5
C24: الاجمالي

Sheet 37
L1: الاجمالي عليه | N1: =SUM(D7:D24) -> 0
L2: المتبقي | N2: =N1-N3 -> 0
L3: الاجمالي له | N3: =SUM(E7:E24) -> 0
B6: التاريخ | C6: البيان | D6: المبلغ عليه | E6: المبلغ له | F6: ملاحظة1 | G6: ملاحظة2 | H6: ملاحظة3 | I6: ملاحظة4 | J6: ملاحظة5
C24: الاجمالي

Sheet 38
L1: الاجمالي عليه | N1: =SUM(D7:D24) -> 0
L2: المتبقي | N2: =N1-N3 -> 0
L3: الاجمالي له | N3: =SUM(E7:E24) -> 0
B6: التاريخ | C6: البيان | D6: المبلغ عليه | E6: المبلغ له | F6: ملاحظة1 | G6: ملاحظة2 | H6: ملاحظة3 | I6: ملاحظة4 | J6: ملاحظة5
C24: الاجمالي

Sheet 39
L1: الاجمالي عليه | N1: =SUM(D7:D24) -> 0
L2: المتبقي | N2: =N1-N3 -> 0
L3: الاجمالي له | N3: =SUM(E7:E24) -> 0
B6: التاريخ | C6: البيان | D6: المبلغ عليه | E6: المبلغ له | F6: ملاحظة1 | G6: ملاحظة2 | H6: ملاحظة3 | I6: ملاحظة4 | J6: ملاحظة5
C24: الاجمالي

Sheet 40
L1: الاجمالي عليه | N1: =SUM(D7:D24) -> 0
L2: المتبقي | N2: =N1-N3 -> 0
L3: الاجمالي له | N3: =SUM(E7:E24) -> 0
B6: التاريخ | C6: البيان | D6: المبلغ عليه | E6: المبلغ له | F6: ملاحظة1 | G6: ملاحظة2 | H6: ملاحظة3 | I6: ملاحظة4 | J6: ملاحظة5
C24: الاجمالي

Sheet 41
L1: الاجمالي عليه | N1: =SUM(D7:D24) -> 0
L2: المتبقي | N2: =N1-N3 -> 0
L3: الاجمالي له | N3: =SUM(E7:E24) -> 0
B6: التاريخ | C6: البيان | D6: المبلغ عليه | E6: المبلغ له | F6: ملاحظة1 | G6: ملاحظة2 | H6: ملاحظة3 | I6: ملاحظة4 | J6: ملاحظة5
C24: الاجمالي

Sheet 42
L1: الاجمالي عليه | N1: =SUM(D7:D24) -> 0
L2: المتبقي | N2: =N1-N3 -> 0
L3: الاجمالي له | N3: =SUM(E7:E24) -> 0
B6: التاريخ | C6: البيان | D6: المبلغ عليه | E6: المبلغ له | F6: ملاحظة1 | G6: ملاحظة2 | H6: ملاحظة3 | I6: ملاحظة4 | J6: ملاحظة5
C24: الاجمالي

Sheet 43
L1: الاجمالي عليه | N1: =SUM(D7:D24) -> 0
L2: المتبقي | N2: =N1-N3 -> 0
L3: الاجمالي له | N3: =SUM(E7:E24) -> 0
B6: التاريخ | C6: البيان | D6: المبلغ عليه | E6: المبلغ له | F6: ملاحظة1 | G6: ملاحظة2 | H6: ملاحظة3 | I6: ملاحظة4 | J6: ملاحظة5
C24: الاجمالي

Sheet 44
L1: الاجمالي عليه | N1: =SUM(D7:D24) -> 0
L2: المتبقي | N2: =N1-N3 -> 0
L3: الاجمالي له | N3: =SUM(E7:E24) -> 0
B6: التاريخ | C6: البيان | D6: المبلغ عليه | E6: المبلغ له | F6: ملاحظة1 | G6: ملاحظة2 | H6: ملاحظة3 | I6: ملاحظة4 | J6: ملاحظة5
C24: الاجمالي

Sheet 45
L1: الاجمالي عليه | N1: =SUM(D7:D24) -> 0
L2: المتبقي | N2: =N1-N3 -> 0
L3: الاجمالي له | N3: =SUM(E7:E24) -> 0
B6: التاريخ | C6: البيان | D6: المبلغ عليه | E6: المبلغ له | F6: ملاحظة1 | G6: ملاحظة2 | H6: ملاحظة3 | I6: ملاحظة4 | J6: ملاحظة5
C24: الاجمالي

Sheet 46
L1: الاجمالي عليه | N1: =SUM(D7:D24) -> 0
L2: المتبقي | N2: =N1-N3 -> 0
L3: الاجمالي له | N3: =SUM(E7:E24) -> 0
B6: التاريخ | C6: البيان | D6: المبلغ عليه | E6: المبلغ له | F6: ملاحظة1 | G6: ملاحظة2 | H6: ملاحظة3 | I6: ملاحظة4 | J6: ملاحظة5
C24: الاجمالي

Sheet 47
L1: الاجمالي عليه | N1: =SUM(D7:D24) -> 0
L2: المتبقي | N2: =N1-N3 -> 0
L3: الاجمالي له | N3: =SUM(E7:E24) -> 0
B6: التاريخ | C6: البيان | D6: المبلغ عليه | E6: المبلغ له | F6: ملاحظة1 | G6: ملاحظة2 | H6: ملاحظة3 | I6: ملاحظة4 | J6: ملاحظة5
C24: الاجمالي

Sheet 48
L1: الاجمالي عليه | N1: =SUM(D7:D24) -> 0
L2: المتبقي | N2: =N1-N3 -> 0
L3: الاجمالي له | N3: =SUM(E7:E24) -> 0
B6: التاريخ | C6: البيان | D6: المبلغ عليه | E6: المبلغ له | F6: ملاحظة1 | G6: ملاحظة2 | H6: ملاحظة3 | I6: ملاحظة4 | J6: ملاحظة5
C24: الاجمالي

Sheet 49
L1: الاجمالي عليه | N1: =SUM(D7:D24) -> 0
L2: المتبقي | N2: =N1-N3 -> 0
L3: الاجمالي له | N3: =SUM(E7:E24) -> 0
B6: التاريخ | C6: البيان | D6: المبلغ عليه | E6: المبلغ له | F6: ملاحظة1 | G6: ملاحظة2 | H6: ملاحظة3 | I6: ملاحظة4 | J6: ملاحظة5
C24: الاجمالي

Sheet 50
L1: الاجمالي عليه | N1: =SUM(D7:D24) -> 0
L2: المتبقي | N2: =N1-N3 -> 0
L3: الاجمالي له | N3: =SUM(E7:E24) -> 0
B6: التاريخ | C6: البيان | D6: المبلغ عليه | E6: المبلغ له | F6: ملاحظة1 | G6: ملاحظة2 | H6: ملاحظة3 | I6: ملاحظة4 | J6: ملاحظة5
C24: الاجمالي

Sheet 51
L1: الاجمالي عليه | N1: =SUM(D7:D24) -> 0
L2: المتبقي | N2: =N1-N3 -> 0
L3: الاجمالي له | N3: =SUM(E7:E24) -> 0
B6: التاريخ | C6: البيان | D6: المبلغ عليه | E6: المبلغ له | F6: ملاحظة1 | G6: ملاحظة2 | H6: ملاحظة3 | I6: ملاحظة4 | J6: ملاحظة5
C24: الاجمالي

Sheet 52
L1: الاجمالي عليه | N1: =SUM(D7:D24) -> 0
L2: المتبقي | N2: =N1-N3 -> 0
L3: الاجمالي له | N3: =SUM(E7:E24) -> 0
B6: التاريخ | C6: البيان | D6: المبلغ عليه | E6: المبلغ له | F6: ملاحظة1 | G6: ملاحظة2 | H6: ملاحظة3 | I6: ملاحظة4 | J6: ملاحظة5
C24: الاجمالي

Sheet 53
L1: الاجمالي عليه | N1: =SUM(D7:D24) -> 0
L2: المتبقي | N2: =N1-N3 -> 0
L3: الاجمالي له | N3: =SUM(E7:E24) -> 0
B6: التاريخ | C6: البيان | D6: المبلغ عليه | E6: المبلغ له | F6: ملاحظة1 | G6: ملاحظة2 | H6: ملاحظة3 | I6: ملاحظة4 | J6: ملاحظة5
C24: الاجمالي

Sheet 54
L1: الاجمالي عليه | N1: =SUM(D7:D24) -> 0
L2: المتبقي | N2: =N1-N3 -> 0
L3: الاجمالي له | N3: =SUM(E7:E24) -> 0
B6: التاريخ | C6: البيان | D6: المبلغ عليه | E6: المبلغ له | F6: ملاحظة1 | G6: ملاحظة2 | H6: ملاحظة3 | I6: ملاحظة4 | J6: ملاحظة5
C24: الاجمالي

Sheet 55
L1: الاجمالي عليه | N1: =SUM(D7:D24) -> 0
L2: المتبقي | N2: =N1-N3 -> 0
L3: الاجمالي له | N3: =SUM(E7:E24) -> 0
B6: التاريخ | C6: البيان | D6: المبلغ عليه | E6: المبلغ له | F6: ملاحظة1 | G6: ملاحظة2 | H6: ملاحظة3 | I6: ملاحظة4 | J6: ملاحظة5
C24: الاجمالي

Sheet 56
L1: الاجمالي عليه | N1: =SUM(D7:D24) -> 0
L2: المتبقي | N2: =N1-N3 -> 0
L3: الاجمالي له | N3: =SUM(E7:E24) -> 0
B6: التاريخ | C6: البيان | D6: المبلغ عليه | E6: المبلغ له | F6: ملاحظة1 | G6: ملاحظة2 | H6: ملاحظة3 | I6: ملاحظة4 | J6: ملاحظة5
C24: الاجمالي

Sheet 57
L1: الاجمالي عليه | N1: =SUM(D7:D24) -> 0
L2: المتبقي | N2: =N1-N3 -> 0
L3: الاجمالي له | N3: =SUM(E7:E24) -> 0
B6: التاريخ | C6: البيان | D6: المبلغ عليه | E6: المبلغ له | F6: ملاحظة1 | G6: ملاحظة2 | H6: ملاحظة3 | I6: ملاحظة4 | J6: ملاحظة5
C24: الاجمالي

Sheet 58
L1: الاجمالي عليه | N1: =SUM(D7:D24) -> 0
L2: المتبقي | N2: =N1-N3 -> 0
L3: الاجمالي له | N3: =SUM(E7:E24) -> 0
B6: التاريخ | C6: البيان | D6: المبلغ عليه | E6: المبلغ له | F6: ملاحظة1 | G6: ملاحظة2 | H6: ملاحظة3 | I6: ملاحظة4 | J6: ملاحظة5
C24: الاجمالي

Sheet 59
L1: الاجمالي عليه | N1: =SUM(D7:D24) -> 0
L2: المتبقي | N2: =N1-N3 -> 0
L3: الاجمالي له | N3: =SUM(E7:E24) -> 0
B6: التاريخ | C6: البيان | D6: المبلغ عليه | E6: المبلغ له | F6: ملاحظة1 | G6: ملاحظة2 | H6: ملاحظة3 | I6: ملاحظة4 | J6: ملاحظة5
C24: الاجمالي

Sheet 60
L1: الاجمالي عليه | N1: =SUM(D7:D24) -> 0
L2: المتبقي | N2: =N1-N3 -> 0
L3: الاجمالي له | N3: =SUM(E7:E24) -> 0
B6: التاريخ | C6: البيان | D6: المبلغ عليه | E6: المبلغ له | F6: ملاحظة1 | G6: ملاحظة2 | H6: ملاحظة3 | I6: ملاحظة4 | J6: ملاحظة5
C24: الاجمالي

Sheet 61
L1: الاجمالي عليه | N1: =SUM(D7:D24) -> 0
L2: المتبقي | N2: =N1-N3 -> 0
L3: الاجمالي له | N3: =SUM(E7:E24) -> 0
B6: التاريخ | C6: البيان | D6: المبلغ عليه | E6: المبلغ له | F6: ملاحظة1 | G6: ملاحظة2 | H6: ملاحظة3 | I6: ملاحظة4 | J6: ملاحظة5
C24: الاجمالي

Sheet 62
L1: الاجمالي عليه | N1: =SUM(D7:D24) -> 0
L2: المتبقي | N2: =N1-N3 -> 0
L3: الاجمالي له | N3: =SUM(E7:E24) -> 0
B6: التاريخ | C6: البيان | D6: المبلغ عليه | E6: المبلغ له | F6: ملاحظة1 | G6: ملاحظة2 | H6: ملاحظة3 | I6: ملاحظة4 | J6: ملاحظة5
C24: الاجمالي

Sheet 63
L1: الاجمالي عليه | N1: =SUM(D7:D24) -> 0
L2: المتبقي | N2: =N1-N3 -> 0
L3: الاجمالي له | N3: =SUM(E7:E24) -> 0
B6: التاريخ | C6: البيان | D6: المبلغ عليه | E6: المبلغ له | F6: ملاحظة1 | G6: ملاحظة2 | H6: ملاحظة3 | I6: ملاحظة4 | J6: ملاحظة5
C24: الاجمالي

Sheet 64
L1: الاجمالي عليه | N1: =SUM(D7:D24) -> 0
L2: المتبقي | N2: =N1-N3 -> 0
L3: الاجمالي له | N3: =SUM(E7:E24) -> 0
B6: التاريخ | C6: البيان | D6: المبلغ عليه | E6: المبلغ له | F6: ملاحظة1 | G6: ملاحظة2 | H6: ملاحظة3 | I6: ملاحظة4 | J6: ملاحظة5
C24: الاجمالي

Sheet 65
L1: الاجمالي عليه | N1: =SUM(D7:D24) -> 0
L2: المتبقي | N2: =N1-N3 -> 0
L3: الاجمالي له | N3: =SUM(E7:E24) -> 0
B6: التاريخ | C6: البيان | D6: المبلغ عليه | E6: المبلغ له | F6: ملاحظة1 | G6: ملاحظة2 | H6: ملاحظة3 | I6: ملاحظة4 | J6: ملاحظة5
C24: الاجمالي

Sheet 66
L1: الاجمالي عليه | N1: =SUM(D7:D24) -> 0
L2: المتبقي | N2: =N1-N3 -> 0
L3: الاجمالي له | N3: =SUM(E7:E24) -> 0
B6: التاريخ | C6: البيان | D6: المبلغ عليه | E6: المبلغ له | F6: ملاحظة1 | G6: ملاحظة2 | H6: ملاحظة3 | I6: ملاحظة4 | J6: ملاحظة5
C24: الاجمالي

Sheet 67
L1: الاجمالي عليه | N1: =SUM(D7:D24) -> 0
L2: المتبقي | N2: =N1-N3 -> 0
L3: الاجمالي له | N3: =SUM(E7:E24) -> 0
B6: التاريخ | C6: البيان | D6: المبلغ عليه | E6: المبلغ له | F6: ملاحظة1 | G6: ملاحظة2 | H6: ملاحظة3 | I6: ملاحظة4 | J6: ملاحظة5
C24: الاجمالي

Sheet 68
L1: الاجمالي عليه | N1: =SUM(D7:D24) -> 0
L2: المتبقي | N2: =N1-N3 -> 0
L3: الاجمالي له | N3: =SUM(E7:E24) -> 0
B6: التاريخ | C6: البيان | D6: المبلغ عليه | E6: المبلغ له | F6: ملاحظة1 | G6: ملاحظة2 | H6: ملاحظة3 | I6: ملاحظة4 | J6: ملاحظة5
C24: الاجمالي

Sheet 69
L1: الاجمالي عليه | N1: =SUM(D7:D24) -> 0
L2: المتبقي | N2: =N1-N3 -> 0
L3: الاجمالي له | N3: =SUM(E7:E24) -> 0
B6: التاريخ | C6: البيان | D6: المبلغ عليه | E6: المبلغ له | F6: ملاحظة1 | G6: ملاحظة2 | H6: ملاحظة3 | I6: ملاحظة4 | J6: ملاحظة5
C24: الاجمالي

Sheet 70
L1: الاجمالي عليه | N1: =SUM(D7:D24) -> 0
L2: المتبقي | N2: =N1-N3 -> 0
L3: الاجمالي له | N3: =SUM(E7:E24) -> 0
B6: التاريخ | C6: البيان | D6: المبلغ عليه | E6: المبلغ له | F6: ملاحظة1 | G6: ملاحظة2 | H6: ملاحظة3 | I6: ملاحظة4 | J6: ملاحظة5
C24: الاجمالي

Sheet 71
L1: الاجمالي عليه | N1: =SUM(D7:D24) -> 0
L2: المتبقي | N2: =N1-N3 -> 0
L3: الاجمالي له | N3: =SUM(E7:E24) -> 0
B6: التاريخ | C6: البيان | D6: المبلغ عليه | E6: المبلغ له | F6: ملاحظة1 | G6: ملاحظة2 | H6: ملاحظة3 | I6: ملاحظة4 | J6: ملاحظة5
C24: الاجمالي

Sheet 72
L1: الاجمالي عليه | N1: =SUM(D7:D24) -> 0
L2: المتبقي | N2: =N1-N3 -> 0
L3: الاجمالي له | N3: =SUM(E7:E24) -> 0
B6: التاريخ | C6: البيان | D6: المبلغ عليه | E6: المبلغ له | F6: ملاحظة1 | G6: ملاحظة2 | H6: ملاحظة3 | I6: ملاحظة4 | J6: ملاحظة5
C24: الاجمالي

Sheet 73
L1: الاجمالي عليه | N1: =SUM(D7:D24) -> 0
L2: المتبقي | N2: =N1-N3 -> 0
L3: الاجمالي له | N3: =SUM(E7:E24) -> 0
B6: التاريخ | C6: البيان | D6: المبلغ عليه | E6: المبلغ له | F6: ملاحظة1 | G6: ملاحظة2 | H6: ملاحظة3 | I6: ملاحظة4 | J6: ملاحظة5
C24: الاجمالي

Sheet 74
L1: الاجمالي عليه | N1: =SUM(D7:D24) -> 0
L2: المتبقي | N2: =N1-N3 -> 0
L3: الاجمالي له | N3: =SUM(E7:E24) -> 0
B6: التاريخ | C6: البيان | D6: المبلغ عليه | E6: المبلغ له | F6: ملاحظة1 | G6: ملاحظة2 | H6: ملاحظة3 | I6: ملاحظة4 | J6: ملاحظة5
C24: الاجمالي

Sheet 75
L1: الاجمالي عليه | N1: =SUM(D7:D24) -> 0
L2: المتبقي | N2: =N1-N3 -> 0
L3: الاجمالي له | N3: =SUM(E7:E24) -> 0
B6: التاريخ | C6: البيان | D6: المبلغ عليه | E6: المبلغ له | F6: ملاحظة1 | G6: ملاحظة2 | H6: ملاحظة3 | I6: ملاحظة4 | J6: ملاحظة5
C24: الاجمالي

Sheet 76
L1: الاجمالي عليه | N1: =SUM(D7:D24) -> 0
L2: المتبقي | N2: =N1-N3 -> 0
L3: الاجمالي له | N3: =SUM(E7:E24) -> 0
B6: التاريخ | C6: البيان | D6: المبلغ عليه | E6: المبلغ له | F6: ملاحظة1 | G6: ملاحظة2 | H6: ملاحظة3 | I6: ملاحظة4 | J6: ملاحظة5
C24: الاجمالي

Sheet 77
L1: الاجمالي عليه | N1: =SUM(D7:D24) -> 0
L2: المتبقي | N2: =N1-N3 -> 0
L3: الاجمالي له | N3: =SUM(E7:E24) -> 0
B6: التاريخ | C6: البيان | D6: المبلغ عليه | E6: المبلغ له | F6: ملاحظة1 | G6: ملاحظة2 | H6: ملاحظة3 | I6: ملاحظة4 | J6: ملاحظة5
C24: الاجمالي

Sheet 78
L1: الاجمالي عليه | N1: =SUM(D7:D24) -> 0
L2: المتبقي | N2: =N1-N3 -> 0
L3: الاجمالي له | N3: =SUM(E7:E24) -> 0
B6: التاريخ | C6: البيان | D6: المبلغ عليه | E6: المبلغ له | F6: ملاحظة1 | G6: ملاحظة2 | H6: ملاحظة3 | I6: ملاحظة4 | J6: ملاحظة5
C24: الاجمالي

Sheet 79
L1: الاجمالي عليه | N1: =SUM(D7:D24) -> 0
L2: المتبقي | N2: =N1-N3 -> 0
L3: الاجمالي له | N3: =SUM(E7:E24) -> 0
B6: التاريخ | C6: البيان | D6: المبلغ عليه | E6: المبلغ له | F6: ملاحظة1 | G6: ملاحظة2 | H6: ملاحظة3 | I6: ملاحظة4 | J6: ملاحظة5
C24: الاجمالي

Sheet 80
L1: الاجمالي عليه | N1: =SUM(D7:D24) -> 0
L2: المتبقي | N2: =N1-N3 -> 0
L3: الاجمالي له | N3: =SUM(E7:E24) -> 0
B6: التاريخ | C6: البيان | D6: المبلغ عليه | E6: المبلغ له | F6: ملاحظة1 | G6: ملاحظة2 | H6: ملاحظة3 | I6: ملاحظة4 | J6: ملاحظة5
C24: الاجمالي

Sheet 81
L1: الاجمالي عليه | N1: =SUM(D7:D24) -> 0
L2: المتبقي | N2: =N1-N3 -> 0
L3: الاجمالي له | N3: =SUM(E7:E24) -> 0
B6: التاريخ | C6: البيان | D6: المبلغ عليه | E6: المبلغ له | F6: ملاحظة1 | G6: ملاحظة2 | H6: ملاحظة3 | I6: ملاحظة4 | J6: ملاحظة5
C24: الاجمالي

Sheet 82
L1: الاجمالي عليه | N1: =SUM(D7:D24) -> 0
L2: المتبقي | N2: =N1-N3 -> 0
L3: الاجمالي له | N3: =SUM(E7:E24) -> 0
B6: التاريخ | C6: البيان | D6: المبلغ عليه | E6: المبلغ له | F6: ملاحظة1 | G6: ملاحظة2 | H6: ملاحظة3 | I6: ملاحظة4 | J6: ملاحظة5
C24: الاجمالي

Sheet 83
L1: الاجمالي عليه | N1: =SUM(D7:D24) -> 0
L2: المتبقي | N2: =N1-N3 -> 0
L3: الاجمالي له | N3: =SUM(E7:E24) -> 0
B6: التاريخ | C6: البيان | D6: المبلغ عليه | E6: المبلغ له | F6: ملاحظة1 | G6: ملاحظة2 | H6: ملاحظة3 | I6: ملاحظة4 | J6: ملاحظة5
C24: الاجمالي

Sheet 84
L1: الاجمالي عليه | N1: =SUM(D7:D24) -> 0
L2: المتبقي | N2: =N1-N3 -> 0
L3: الاجمالي له | N3: =SUM(E7:E24) -> 0
B6: التاريخ | C6: البيان | D6: المبلغ عليه | E6: المبلغ له | F6: ملاحظة1 | G6: ملاحظة2 | H6: ملاحظة3 | I6: ملاحظة4 | J6: ملاحظة5
C24: الاجمالي

Sheet 85
L1: الاجمالي عليه | N1: =SUM(D7:D24) -> 0
L2: المتبقي | N2: =N1-N3 -> 0
L3: الاجمالي له | N3: =SUM(E7:E24) -> 0
B6: التاريخ | C6: البيان | D6: المبلغ عليه | E6: المبلغ له | F6: ملاحظة1 | G6: ملاحظة2 | H6: ملاحظة3 | I6: ملاحظة4 | J6: ملاحظة5
C24: الاجمالي

Sheet 86
L1: الاجمالي عليه | N1: =SUM(D7:D24) -> 0
L2: المتبقي | N2: =N1-N3 -> 0
L3: الاجمالي له | N3: =SUM(E7:E24) -> 0
B6: التاريخ | C6: البيان | D6: المبلغ عليه | E6: المبلغ له | F6: ملاحظة1 | G6: ملاحظة2 | H6: ملاحظة3 | I6: ملاحظة4 | J6: ملاحظة5
C24: الاجمالي

Sheet 87
L1: الاجمالي عليه | N1: =SUM(D7:D24) -> 0
L2: المتبقي | N2: =N1-N3 -> 0
L3: الاجمالي له | N3: =SUM(E7:E24) -> 0
B6: التاريخ | C6: البيان | D6: المبلغ عليه | E6: المبلغ له | F6: ملاحظة1 | G6: ملاحظة2 | H6: ملاحظة3 | I6: ملاحظة4 | J6: ملاحظة5
C24: الاجمالي

Sheet 88
L1: الاجمالي عليه | N1: =SUM(D7:D24) -> 0
L2: المتبقي | N2: =N1-N3 -> 0
L3: الاجمالي له | N3: =SUM(E7:E24) -> 0
B6: التاريخ | C6: البيان | D6: المبلغ عليه | E6: المبلغ له | F6: ملاحظة1 | G6: ملاحظة2 | H6: ملاحظة3 | I6: ملاحظة4 | J6: ملاحظة5
C24: الاجمالي

Sheet 89
L1: الاجمالي عليه | N1: =SUM(D7:D24) -> 0
L2: المتبقي | N2: =N1-N3 -> 0
L3: الاجمالي له | N3: =SUM(E7:E24) -> 0
B6: التاريخ | C6: البيان | D6: المبلغ عليه | E6: المبلغ له | F6: ملاحظة1 | G6: ملاحظة2 | H6: ملاحظة3 | I6: ملاحظة4 | J6: ملاحظة5
C24: الاجمالي

Sheet 90
L1: الاجمالي عليه | N1: =SUM(D7:D24) -> 0
L2: المتبقي | N2: =N1-N3 -> 0
L3: الاجمالي له | N3: =SUM(E7:E24) -> 0
B6: التاريخ | C6: البيان | D6: المبلغ عليه | E6: المبلغ له | F6: ملاحظة1 | G6: ملاحظة2 | H6: ملاحظة3 | I6: ملاحظة4 | J6: ملاحظة5
C24: الاجمالي

Sheet 91
L1: الاجمالي عليه | N1: =SUM(D7:D24) -> 0
L2: المتبقي | N2: =N1-N3 -> 0
L3: الاجمالي له | N3: =SUM(E7:E24) -> 0
B6: التاريخ | C6: البيان | D6: المبلغ عليه | E6: المبلغ له | F6: ملاحظة1 | G6: ملاحظة2 | H6: ملاحظة3 | I6: ملاحظة4 | J6: ملاحظة5
C24: الاجمالي

Sheet 92
L1: الاجمالي عليه | N1: =SUM(D7:D24) -> 0
L2: المتبقي | N2: =N1-N3 -> 0
L3: الاجمالي له | N3: =SUM(E7:E24) -> 0
B6: التاريخ | C6: البيان | D6: المبلغ عليه | E6: المبلغ له | F6: ملاحظة1 | G6: ملاحظة2 | H6: ملاحظة3 | I6: ملاحظة4 | J6: ملاحظة5
C24: الاجمالي

Sheet 93
L1: الاجمالي عليه | N1: =SUM(D7:D24) -> 0
L2: المتبقي | N2: =N1-N3 -> 0
L3: الاجمالي له | N3: =SUM(E7:E24) -> 0
B6: التاريخ | C6: البيان | D6: المبلغ عليه | E6: المبلغ له | F6: ملاحظة1 | G6: ملاحظة2 | H6: ملاحظة3 | I6: ملاحظة4 | J6: ملاحظة5
C24: الاجمالي

Sheet 94
L1: الاجمالي عليه | N1: =SUM(D7:D24) -> 0
L2: المتبقي | N2: =N1-N3 -> 0
L3: الاجمالي له | N3: =SUM(E7:E24) -> 0
B6: التاريخ | C6: البيان | D6: المبلغ عليه | E6: المبلغ له | F6: ملاحظة1 | G6: ملاحظة2 | H6: ملاحظة3 | I6: ملاحظة4 | J6: ملاحظة5
C24: الاجمالي

Sheet 95
L1: الاجمالي عليه | N1: =SUM(D7:D24) -> 0
L2: المتبقي | N2: =N1-N3 -> 0
L3: الاجمالي له | N3: =SUM(E7:E24) -> 0
B6: التاريخ | C6: البيان | D6: المبلغ عليه | E6: المبلغ له | F6: ملاحظة1 | G6: ملاحظة2 | H6: ملاحظة3 | I6: ملاحظة4 | J6: ملاحظة5
C24: الاجمالي

Sheet 96
L1: الاجمالي عليه | N1: =SUM(D7:D24) -> 0
L2: المتبقي | N2: =N1-N3 -> 0
L3: الاجمالي له | N3: =SUM(E7:E24) -> 0
B6: التاريخ | C6: البيان | D6: المبلغ عليه | E6: المبلغ له | F6: ملاحظة1 | G6: ملاحظة2 | H6: ملاحظة3 | I6: ملاحظة4 | J6: ملاحظة5
C24: الاجمالي

Sheet 97
L1: الاجمالي عليه | N1: =SUM(D7:D24) -> 0
L2: المتبقي | N2: =N1-N3 -> 0
L3: الاجمالي له | N3: =SUM(E7:E24) -> 0
B6: التاريخ | C6: البيان | D6: المبلغ عليه | E6: المبلغ له | F6: ملاحظة1 | G6: ملاحظة2 | H6: ملاحظة3 | I6: ملاحظة4 | J6: ملاحظة5
C24: الاجمالي

Sheet 98
L1: الاجمالي عليه | N1: =SUM(D7:D24) -> 0
L2: المتبقي | N2: =N1-N3 -> 0
L3: الاجمالي له | N3: =SUM(E7:E24) -> 0
B6: التاريخ | C6: البيان | D6: المبلغ عليه | E6: المبلغ له | F6: ملاحظة1 | G6: ملاحظة2 | H6: ملاحظة3 | I6: ملاحظة4 | J6: ملاحظة5
C24: الاجمالي

Sheet 99
L1: الاجمالي عليه | N1: =SUM(D7:D24) -> 0
L2: المتبقي | N2: =N1-N3 -> 0
L3: الاجمالي له | N3: =SUM(E7:E24) -> 0
B6: التاريخ | C6: البيان | D6: المبلغ عليه | E6: المبلغ له | F6: ملاحظة1 | G6: ملاحظة2 | H6: ملاحظة3 | I6: ملاحظة4 | J6: ملاحظة5
C24: الاجمالي

Sheet 100
L1: الاجمالي عليه | N1: =SUM(D7:D24) -> 0
L2: المتبقي | N2: =N1-N3 -> 0
L3: الاجمالي له | N3: =SUM(E7:E24) -> 0
B6: التاريخ | C6: البيان | D6: المبلغ عليه | E6: المبلغ له | F6: ملاحظة1 | G6: ملاحظة2 | H6: ملاحظة3 | I6: ملاحظة4 | J6: ملاحظة5
C24: الاجمالي

Sheet 101
L1: الاجمالي عليه | N1: =SUM(D7:D24) -> 0
L2: المتبقي | N2: =N1-N3 -> 0
L3: الاجمالي له | N3: =SUM(E7:E24) -> 0
B6: التاريخ | C6: البيان | D6: المبلغ عليه | E6: المبلغ له | F6: ملاحظة1 | G6: ملاحظة2 | H6: ملاحظة3 | I6: ملاحظة4 | J6: ملاحظة5
C24: الاجمالي

Sheet 102
L1: الاجمالي عليه | N1: =SUM(D7:D24) -> 0
L2: المتبقي | N2: =N1-N3 -> 0
L3: الاجمالي له | N3: =SUM(E7:E24) -> 0
B6: التاريخ | C6: البيان | D6: المبلغ عليه | E6: المبلغ له | F6: ملاحظة1 | G6: ملاحظة2 | H6: ملاحظة3 | I6: ملاحظة4 | J6: ملاحظة5
C24: الاجمالي

Sheet 103
L1: الاجمالي عليه | N1: =SUM(D7:D24) -> 0
L2: المتبقي | N2: =N1-N3 -> 0
L3: الاجمالي له | N3: =SUM(E7:E24) -> 0
B6: التاريخ | C6: البيان | D6: المبلغ عليه | E6: المبلغ له | F6: ملاحظة1 | G6: ملاحظة2 | H6: ملاحظة3 | I6: ملاحظة4 | J6: ملاحظة5
C24: الاجمالي

Sheet 104
L1: الاجمالي عليه | N1: =SUM(D7:D24) -> 0
L2: المتبقي | N2: =N1-N3 -> 0
L3: الاجمالي له | N3: =SUM(E7:E24) -> 0
B6: التاريخ | C6: البيان | D6: المبلغ عليه | E6: المبلغ له | F6: ملاحظة1 | G6: ملاحظة2 | H6: ملاحظة3 | I6: ملاحظة4 | J6: ملاحظة5
C24: الاجمالي

Sheet 105
L1: الاجمالي عليه | N1: =SUM(D7:D24) -> 0
L2: المتبقي | N2: =N1-N3 -> 0
L3: الاجمالي له | N3: =SUM(E7:E24) -> 0
B6: التاريخ | C6: البيان | D6: المبلغ عليه | E6: المبلغ له | F6: ملاحظة1 | G6: ملاحظة2 | H6: ملاحظة3 | I6: ملاحظة4 | J6: ملاحظة5
C24: الاجمالي

Sheet 106
L1: الاجمالي عليه | N1: =SUM(D7:D24) -> 0
L2: المتبقي | N2: =N1-N3 -> 0
L3: الاجمالي له | N3: =SUM(E7:E24) -> 0
B6: التاريخ | C6: البيان | D6: المبلغ عليه | E6: المبلغ له | F6: ملاحظة1 | G6: ملاحظة2 | H6: ملاحظة3 | I6: ملاحظة4 | J6: ملاحظة5
C24: الاجمالي

Sheet 107
L1: الاجمالي عليه | N1: =SUM(D7:D24) -> 0
L2: المتبقي | N2: =N1-N3 -> 0
L3: الاجمالي له | N3: =SUM(E7:E24) -> 0
B6: التاريخ | C6: البيان | D6: المبلغ عليه | E6: المبلغ له | F6: ملاحظة1 | G6: ملاحظة2 | H6: ملاحظة3 | I6: ملاحظة4 | J6: ملاحظة5
C24: الاجمالي

Sheet 108
L1: الاجمالي عليه | N1: =SUM(D7:D24) -> 0
L2: المتبقي | N2: =N1-N3 -> 0
L3: الاجمالي له | N3: =SUM(E7:E24) -> 0
B6: التاريخ | C6: البيان | D6: المبلغ عليه | E6: المبلغ له | F6: ملاحظة1 | G6: ملاحظة2 | H6: ملاحظة3 | I6: ملاحظة4 | J6: ملاحظة5
C24: الاجمالي

Sheet 109
L1: الاجمالي عليه | N1: =SUM(D7:D24) -> 0
L2: المتبقي | N2: =N1-N3 -> 0
L3: الاجمالي له | N3: =SUM(E7:E24) -> 0
B6: التاريخ | C6: البيان | D6: المبلغ عليه | E6: المبلغ له | F6: ملاحظة1 | G6: ملاحظة2 | H6: ملاحظة3 | I6: ملاحظة4 | J6: ملاحظة5
C24: الاجمالي

Sheet 110
L1: الاجمالي عليه | N1: =SUM(D7:D24) -> 0
L2: المتبقي | N2: =N1-N3 -> 0
L3: الاجمالي له | N3: =SUM(E7:E24) -> 0
B6: التاريخ | C6: البيان | D6: المبلغ عليه | E6: المبلغ له | F6: ملاحظة1 | G6: ملاحظة2 | H6: ملاحظة3 | I6: ملاحظة4 | J6: ملاحظة5
C24: الاجمالي

Sheet 111
L1: الاجمالي عليه | N1: =SUM(D7:D24) -> 0
L2: المتبقي | N2: =N1-N3 -> 0
L3: الاجمالي له | N3: =SUM(E7:E24) -> 0
B6: التاريخ | C6: البيان | D6: المبلغ عليه | E6: المبلغ له | F6: ملاحظة1 | G6: ملاحظة2 | H6: ملاحظة3 | I6: ملاحظة4 | J6: ملاحظة5
C24: الاجمالي

Sheet 112
L1: الاجمالي عليه | N1: =SUM(D7:D24) -> 0
L2: المتبقي | N2: =N1-N3 -> 0
L3: الاجمالي له | N3: =SUM(E7:E24) -> 0
B6: التاريخ | C6: البيان | D6: المبلغ عليه | E6: المبلغ له | F6: ملاحظة1 | G6: ملاحظة2 | H6: ملاحظة3 | I6: ملاحظة4 | J6: ملاحظة5
C24: الاجمالي

Sheet 113
L1: الاجمالي عليه | N1: =SUM(D7:D24) -> 0
L2: المتبقي | N2: =N1-N3 -> 0
L3: الاجمالي له | N3: =SUM(E7:E24) -> 0
B6: التاريخ | C6: البيان | D6: المبلغ عليه | E6: المبلغ له | F6: ملاحظة1 | G6: ملاحظة2 | H6: ملاحظة3 | I6: ملاحظة4 | J6: ملاحظة5
C24: الاجمالي

Sheet 114
L1: الاجمالي عليه | N1: =SUM(D7:D24) -> 0
L2: المتبقي | N2: =N1-N3 -> 0
L3: الاجمالي له | N3: =SUM(E7:E24) -> 0
B6: التاريخ | C6: البيان | D6: المبلغ عليه | E6: المبلغ له | F6: ملاحظة1 | G6: ملاحظة2 | H6: ملاحظة3 | I6: ملاحظة4 | J6: ملاحظة5
C24: الاجمالي

Sheet 115
L1: الاجمالي عليه | N1: =SUM(D7:D24) -> 0
L2: المتبقي | N2: =N1-N3 -> 0
L3: الاجمالي له | N3: =SUM(E7:E24) -> 0
B6: التاريخ | C6: البيان | D6: المبلغ عليه | E6: المبلغ له | F6: ملاحظة1 | G6: ملاحظة2 | H6: ملاحظة3 | I6: ملاحظة4 | J6: ملاحظة5
C24: الاجمالي

Sheet 116
L1: الاجمالي عليه | N1: =SUM(D7:D24) -> 0
L2: المتبقي | N2: =N1-N3 -> 0
L3: الاجمالي له | N3: =SUM(E7:E24) -> 0
B6: التاريخ | C6: البيان | D6: المبلغ عليه | E6: المبلغ له | F6: ملاحظة1 | G6: ملاحظة2 | H6: ملاحظة3 | I6: ملاحظة4 | J6: ملاحظة5
C24: الاجمالي

Sheet 117
L1: الاجمالي عليه | N1: =SUM(D7:D24) -> 0
L2: المتبقي | N2: =N1-N3 -> 0
L3: الاجمالي له | N3: =SUM(E7:E24) -> 0
B6: التاريخ | C6: البيان | D6: المبلغ عليه | E6: المبلغ له | F6: ملاحظة1 | G6: ملاحظة2 | H6: ملاحظة3 | I6: ملاحظة4 | J6: ملاحظة5
C24: الاجمالي

Sheet 118
L1: الاجمالي عليه | N1: =SUM(D7:D24) -> 0
L2: المتبقي | N2: =N1-N3 -> 0
L3: الاجمالي له | N3: =SUM(E7:E24) -> 0
B6: التاريخ | C6: البيان | D6: المبلغ عليه | E6: المبلغ له | F6: ملاحظة1 | G6: ملاحظة2 | H6: ملاحظة3 | I6: ملاحظة4 | J6: ملاحظة5
C24: الاجمالي

Sheet 119
L1: الاجمالي عليه | N1: =SUM(D7:D24) -> 0
L2: المتبقي | N2: =N1-N3 -> 0
L3: الاجمالي له | N3: =SUM(E7:E24) -> 0
B6: التاريخ | C6: البيان | D6: المبلغ عليه | E6: المبلغ له | F6: ملاحظة1 | G6: ملاحظة2 | H6: ملاحظة3 | I6: ملاحظة4 | J6: ملاحظة5
C24: الاجمالي

Sheet 120
L1: الاجمالي عليه | N1: =SUM(D7:D24) -> 0
L2: المتبقي | N2: =N1-N3 -> 0
L3: الاجمالي له | N3: =SUM(E7:E24) -> 0
B6: التاريخ | C6: البيان | D6: المبلغ عليه | E6: المبلغ له | F6: ملاحظة1 | G6: ملاحظة2 | H6: ملاحظة3 | I6: ملاحظة4 | J6: ملاحظة5
C24: الاجمالي

Sheet 121
L1: الاجمالي عليه | N1: =SUM(D7:D24) -> 0
L2: المتبقي | N2: =N1-N3 -> 0
L3: الاجمالي له | N3: =SUM(E7:E24) -> 0
B6: التاريخ | C6: البيان | D6: المبلغ عليه | E6: المبلغ له | F6: ملاحظة1 | G6: ملاحظة2 | H6: ملاحظة3 | I6: ملاحظة4 | J6: ملاحظة5
C24: الاجمالي

Sheet 122
L1: الاجمالي عليه | N1: =SUM(D7:D24) -> 0
L2: المتبقي | N2: =N1-N3 -> 0
L3: الاجمالي له | N3: =SUM(E7:E24) -> 0
B6: التاريخ | C6: البيان | D6: المبلغ عليه | E6: المبلغ له | F6: ملاحظة1 | G6: ملاحظة2 | H6: ملاحظة3 | I6: ملاحظة4 | J6: ملاحظة5
C24: الاجمالي

Sheet 123
L1: الاجمالي عليه | N1: =SUM(D7:D24) -> 0
L2: المتبقي | N2: =N1-N3 -> 0
L3: الاجمالي له | N3: =SUM(E7:E24) -> 0
B6: التاريخ | C6: البيان | D6: المبلغ عليه | E6: المبلغ له | F6: ملاحظة1 | G6: ملاحظة2 | H6: ملاحظة3 | I6: ملاحظة4 | J6: ملاحظة5
C24: الاجمالي

Sheet 124
L1: الاجمالي عليه | N1: =SUM(D7:D24) -> 0
L2: المتبقي | N2: =N1-N3 -> 0
L3: الاجمالي له | N3: =SUM(E7:E24) -> 0
B6: التاريخ | C6: البيان | D6: المبلغ عليه | E6: المبلغ له | F6: ملاحظة1 | G6: ملاحظة2 | H6: ملاحظة3 | I6: ملاحظة4 | J6: ملاحظة5
C24: الاجمالي

Sheet 125
L1: الاجمالي عليه | N1: =SUM(D7:D24) -> 0
L2: المتبقي | N2: =N1-N3 -> 0
L3: الاجمالي له | N3: =SUM(E7:E24) -> 0
B6: التاريخ | C6: البيان | D6: المبلغ عليه | E6: المبلغ له | F6: ملاحظة1 | G6: ملاحظة2 | H6: ملاحظة3 | I6: ملاحظة4 | J6: ملاحظة5
C24: الاجمالي

Sheet 126
L1: الاجمالي عليه | N1: =SUM(D7:D24) -> 0
L2: المتبقي | N2: =N1-N3 -> 0
L3: الاجمالي له | N3: =SUM(E7:E24) -> 0
B6: التاريخ | C6: البيان | D6: المبلغ عليه | E6: المبلغ له | F6: ملاحظة1 | G6: ملاحظة2 | H6: ملاحظة3 | I6: ملاحظة4 | J6: ملاحظة5
C24: الاجمالي

Sheet 127
L1: الاجمالي عليه | N1: =SUM(D7:D24) -> 0
L2: المتبقي | N2: =N1-N3 -> 0
L3: الاجمالي له | N3: =SUM(E7:E24) -> 0
B6: التاريخ | C6: البيان | D6: المبلغ عليه | E6: المبلغ له | F6: ملاحظة1 | G6: ملاحظة2 | H6: ملاحظة3 | I6: ملاحظة4 | J6: ملاحظة5
C24: الاجمالي

Sheet 128
L1: الاجمالي عليه | N1: =SUM(D7:D24) -> 0
L2: المتبقي | N2: =N1-N3 -> 0
L3: الاجمالي له | N3: =SUM(E7:E24) -> 0
B6: التاريخ | C6: البيان | D6: المبلغ عليه | E6: المبلغ له | F6: ملاحظة1 | G6: ملاحظة2 | H6: ملاحظة3 | I6: ملاحظة4 | J6: ملاحظة5
C24: الاجمالي

Sheet 129
L1: الاجمالي عليه | N1: =SUM(D7:D24) -> 0
L2: المتبقي | N2: =N1-N3 -> 0
L3: الاجمالي له | N3: =SUM(E7:E24) -> 0
B6: التاريخ | C6: البيان | D6: المبلغ عليه | E6: المبلغ له | F6: ملاحظة1 | G6: ملاحظة2 | H6: ملاحظة3 | I6: ملاحظة4 | J6: ملاحظة5
C24: الاجمالي

Sheet 130
L1: الاجمالي عليه | N1: =SUM(D7:D24) -> 0
L2: المتبقي | N2: =N1-N3 -> 0
L3: الاجمالي له | N3: =SUM(E7:E24) -> 0
B6: التاريخ | C6: البيان | D6: المبلغ عليه | E6: المبلغ له | F6: ملاحظة1 | G6: ملاحظة2 | H6: ملاحظة3 | I6: ملاحظة4 | J6: ملاحظة5
C24: الاجمالي

Sheet 131
L1: الاجمالي عليه | N1: =SUM(D7:D24) -> 0
L2: المتبقي | N2: =N1-N3 -> 0
L3: الاجمالي له | N3: =SUM(E7:E24) -> 0
B6: التاريخ | C6: البيان | D6: المبلغ عليه | E6: المبلغ له | F6: ملاحظة1 | G6: ملاحظة2 | H6: ملاحظة3 | I6: ملاحظة4 | J6: ملاحظة5
C24: الاجمالي

Sheet 132
L1: الاجمالي عليه | N1: =SUM(D7:D24) -> 0
L2: المتبقي | N2: =N1-N3 -> 0
L3: الاجمالي له | N3: =SUM(E7:E24) -> 0
B6: التاريخ | C6: البيان | D6: المبلغ عليه | E6: المبلغ له | F6: ملاحظة1 | G6: ملاحظة2 | H6: ملاحظة3 | I6: ملاحظة4 | J6: ملاحظة5
C24: الاجمالي

Sheet 133
L1: الاجمالي عليه | N1: =SUM(D7:D24) -> 0
L2: المتبقي | N2: =N1-N3 -> 0
L3: الاجمالي له | N3: =SUM(E7:E24) -> 0
B6: التاريخ | C6: البيان | D6: المبلغ عليه | E6: المبلغ له | F6: ملاحظة1 | G6: ملاحظة2 | H6: ملاحظة3 | I6: ملاحظة4 | J6: ملاحظة5
C24: الاجمالي

Sheet 134
L1: الاجمالي عليه | N1: =SUM(D7:D24) -> 0
L2: المتبقي | N2: =N1-N3 -> 0
L3: الاجمالي له | N3: =SUM(E7:E24) -> 0
B6: التاريخ | C6: البيان | D6: المبلغ عليه | E6: المبلغ له | F6: ملاحظة1 | G6: ملاحظة2 | H6: ملاحظة3 | I6: ملاحظة4 | J6: ملاحظة5
C24: الاجمالي
